[Event "Fall GM-B Norm Invitational 2022"]
[Site "Charlotte"]
[Date "2022.11.18"]
[Round "2"]
[White "Cruz, Cristhian"]
[Black "Ngo, Bach"]
[Result "1/2-1/2"]
[ECO "D01"]
[WhiteElo "2552"]
[BlackElo "2275"]
[Annotator "TA"]
[PlyCount "81"]
[EventDate "2022.11.18"]
[EventType "tourn"]
[EventCountry "USA"]
[SourceTitle "playchess.com"]
[Source "ChessBase"]
[SourceQuality "1"]
[TimeControl "5400+30"]

{[%evp 9,81,12,11,-7,4,-33,0,-22,-35,-57,-51,-40,-54,-48,-8,-32,-22,0,0,-61,-88,-136,-111,-156,-143,-95,-45,-33,-51,-30,6,4,9,4,10,0,0,0,12,0,0,0,0,0,0,0,0,0,0,0,0,-5,0,0,83,0,0,0,0,0,0,0,65,71,70,62,97,0,97,0,83,0,103,0]} 1. d4 {[%emt 0:00:05]} Nf6 {[%emt 0:07:39]} 2. Nc3 {[%emt 0:00:40]} d5 {[%emt 0:00:14]} 3. Bf4 {[%emt 0:00:32]} a6 {[%emt 0:00:42]} 4. e3 {[%emt 0:00:40]} Bf5 {[%emt 0:00:19]} 5. Bd3 {[%emt 0:00:54]} Bxd3 {[%emt 0:00:41]} 6. Qxd3 {[%emt 0:00:57] D00: 1 d4 d5: Unusual lines.} e6 {[%emt 0:00:47]} 7. Nge2 {[%emt 0:02:49]} Nbd7 {[%emt 0:10:45] [#]} 8. O-O-O $146 {[%emt 0:07:33] The position is equal.} ({Predecessor:} 8. O-O c5 9. dxc5 Bxc5 10. Bg5 Qc7 11. e4 Bd6 12. h3 Nc5 13. Qe3 Ncxe4 14. Bxf6 Nxf6 {0-1 (45) Sprindys,A-Slikas,L (2062) Vilnius 2007}) 8... b5 {[%emt 0:03:32]} 9. f3 {[%emt 0:02:34]} c5 {[%emt 0:04:01]} 10. e4 {[%emt 0:12:39]} c4 {[%emt 0:03:39]} 11. Qe3 {[%emt 0:00:06]} Nb6 {[%emt 0:02:46] White should prevent ...b4.} 12. a3 {[%emt 0:09:33]} Be7 $1 {[%emt 0:12:35]} 13. g4 {[%emt 0:04:46]} Qd7 {[%emt 0:08:35]} 14. Ng3 {[%emt 0:14:35]} (14. g5 $1 $11 Nh5 15. exd5) 14... O-O $15 {[%emt 0:06:30]} 15. Bg5 {[%emt 0:24:17] [#]} (15. g5 $142 Ne8 16. exd5) 15... Rfb8 $1 $17 {[%emt 0:08:10]} 16. Nh5 {[%emt 0:04:16]} Nxh5 {[%emt 0:01:17]} 17. gxh5 {[%emt 0:00:04]} (17. Bxe7 $142 Qxe7 18. gxh5) 17... Bxg5 {[%emt 0:02:17]} (17... a5 $17 {And now ...b4 would win.} 18. Bxe7 Qxe7 19. Nxb5 Na4) 18. Qxg5 $15 {[%emt 0:00:03]} h6 {[%emt 0:00:27]} 19. Qf4 {[%emt 0:01:10]} Kh8 {[%emt 0:03:44]} (19... Kh7 $5 {[%cal Ra6a5]}) 20. Rhg1 {[%emt 0:00:34]} Rg8 {[%emt 0:00:52]} 21. Rg2 {[%emt 0:01:53]} Kh7 {[%emt 0:10:11]} 22. Re1 {[%emt 0:02:29]} a5 {[%emt 0:01:24] White must now prevent ...b4.} 23. exd5 {[%emt 0:01:13]} exd5 {[%emt 0:02:38] Hoping for ...b4.} 24. Re5 {[%emt 0:00:43][%cal Oc3d5]} b4 {[%emt 0:02:35]} 25. Nxd5 {[%emt 0:01:06]} Nxd5 {[%emt 0:00:08]} 26. Qe4+ {[%emt 0:00:02]} Kh8 {[%emt 0:00:11]} 27. Qxd5 {[%emt 0:02:33]} Qh3 {[%emt 0:00:17]} 28. Rge2 {[%emt 0:00:36]} c3 {[%emt 0:01:48]} 29. bxc3 {[%emt 0:01:23]} bxc3 {[%emt 0:00:22]} 30. R5e3 {[%emt 0:00:33]} Rac8 {[%emt 0:01:20]} 31. Qxa5 {[%emt 0:04:03]} (31. Qxf7 Qf1+ 32. Re1 Qf2 $17) 31... Qf1+ {[%emt 0:00:46]} 32. Re1 {[%emt 0:00:01]} Qf2 {[%emt 0:03:40]} 33. R1e2 {[%emt 0:00:06] Inhibits Qd2+.} Qg1+ {[%emt 0:00:51]} 34. Re1 {[%emt 0:00:02]} Qxh2 {[%emt 0:00:16]} 35. Rd1 {[%emt 0:00:15] Against Qd2+} Ra8 {[%emt 0:01:23]} (35... Qf4 $11 36. Qe5 Qh4) 36. Qxc3 $14 {[%emt 0:01:20]} Rgc8 {[%emt 0:00:09]} 37. Qd2 {[%emt 0:00:27]} Qd6 {[%emt 0:00:27]} 38. Qb4 {[%emt 0:01:09]} ({White should try} 38. Qd3 $16) 38... Qf4 {[%emt 0:00:48]} (38... Qc7 $11 {remains equal.} 39. Qd2 Ra5) 39. Qd2 {[%emt 0:00:27][%cal Oe3e8] Re8+! is the strong threat.} Qd6 $1 {[%emt 0:00:21]} 40. Qb4 {[%emt 0:00:07]} Qf4 {[%emt 0:00:05] [#]} 41. Qd2 {[%emt 0:00:21] Weighted Error Value: White=0.20 (precise) /Black=0.14 (very precise)} ({White should play} 41. Rdd3 $1 $16) 1/2-1/2

[Event "Fall GM-B Norm Invitational 2022"]
[Site "Charlotte"]
[Date "2022.11.18"]
[Round "2"]
[White "Beradze, Irakli"]
[Black "Kantor, Gergely"]
[Result "1/2-1/2"]
[ECO "A07"]
[WhiteElo "2494"]
[BlackElo "2561"]
[Annotator "TA"]
[PlyCount "51"]
[EventDate "2022.11.18"]
[EventType "tourn"]
[EventCountry "USA"]
[SourceTitle "playchess.com"]
[Source "ChessBase"]
[SourceQuality "1"]
[TimeControl "5400+30"]

{[%evp 9,51,-18,-5,-20,-23,-24,19,6,16,11,5,0,0,0,0,0,0,0,0,0,0,0,0,0,0,0,0,0,25,0,0,0,0,0,0,0,0,0,0,0,0,0,0,0]} 1. Nf3 {[%emt 0:01:43]} d5 {[%emt 0:00:32]} 2. g3 {[%emt 0:00:05]} g6 {[%emt 0:00:07]} 3. c4 {[%emt 0:00:58]} dxc4 {[%emt 0:01:15]} 4. Na3 {[%emt 0:00:37]} Bg7 {[%emt 0:00:38]} 5. Nxc4 {[%emt 0:00:13]} Nc6 {[%emt 0:00:16]} 6. d3 {[%emt 0:01:04] A09: Réti Opening: 1 Nf3 d5 2 c4.} e5 {[%emt 0:00:38][%cal Oe5e4]} 7. Bd2 {[%emt 0:00:03]} Nf6 {[%emt 0:02:34]} 8. Ncxe5 {[%emt 0:20:49]} Nxe5 {[%emt 0:00:17]} 9. Nxe5 {[%emt 0:00:03]} O-O $1 {[%emt 0:00:27]} 10. Nf3 {[%emt 0:25:35]} Re8 {[%emt 0:03:47]} 11. Bc3 {[%emt 0:06:53]} Bf5 {[%emt 0:05:48] [#]} 12. e3 $146 {[%emt 0:02:11]} ({Predecessor:} 12. d4 Qe7 13. Bg2 Ne4 14. Nh4 Bg4 15. Nf3 c5 16. e3 Nxf2 17. Kxf2 Qxe3+ 18. Kf1 Rad8 19. h3 Bf5 20. Ne1 cxd4 21. Bd2 Qxg3 22. Qf3 Qd6 23. Nd3 Qa6 {0-1 (23) Banusz,T (2631)-Can,E (2569) Tornelo INT 2021}) 12... Qd5 {[%emt 0:34:32]} 13. Be2 {[%emt 0:00:04]} Bh3 {[%emt 0:11:47]} 14. Bf1 {[%emt 0:07:08]} Bf5 {[%emt 0:12:05]} 15. Be2 {[%emt 0:01:53]} Bh3 {[%emt 0:04:15]} 16. Rg1 {[%emt 0:03:04][%cal Og3g4]} Bg4 {[%emt 0:08:03]} 17. Nd2 {[%emt 0:00:33]} Bxe2 {[%emt 0:01:02]} 18. Qxe2 {[%emt 0:00:09]} Rad8 {[%emt 0:03:33]} 19. d4 {[%emt 0:11:06]} Ne4 {[%emt 0:00:09] The position is equal.} 20. Nxe4 {[%emt 0:01:35]} Qxe4 {[%emt 0:02:08]} 21. O-O-O {[%emt 0:06:37]} Bxd4 {[%emt 0:03:29]} 22. Bxd4 {[%emt 0:00:32]} Rxd4 {[%emt 0:00:08]} 23. Rxd4 {[%emt 0:00:15]} Qxd4 {[%emt 0:00:10]} 24. Rd1 {[%emt 0:00:37]} Qc5+ {[%emt 0:00:50]} 25. Qc2 {[%emt 0:00:06]} Qe7 {[%emt 0:01:38]} 26. Qd3 {[%emt 0:00:46] An interesting draw.  Weighted Error Value: White=0.03 (flawless) /Black=0.02 (flawless)} 1/2-1/2

[Event "Fall GM-B Norm Invitational 2022"]
[Site "Charlotte"]
[Date "2022.11.18"]
[Round "2"]
[White "Paragua, Mark"]
[Black "Ozenir, Ekin Baris"]
[Result "1/2-1/2"]
[ECO "E18"]
[WhiteElo "2466"]
[BlackElo "2352"]
[Annotator "TA"]
[PlyCount "104"]
[EventDate "2022.11.18"]
[EventType "tourn"]
[EventCountry "USA"]
[SourceTitle "playchess.com"]
[Source "ChessBase"]
[SourceQuality "1"]
[TimeControl "5400+30"]

{[%evp 15,104,-1,22,16,25,21,25,13,20,37,103,34,59,18,22,8,23,0,30,24,40,20,130,100,95,104,102,97,100,104,148,10,148,14,17,10,10,0,0,0,0,0,3,0,0,0,0,0,8,0,0,0,0,0,0,0,66,67,67,67,67,67,116,115,109,42,42,0,0,0,0,0,0,0,0,0,0,0,0,0,0,0,0,0,0,0,0,0,0,0,0]} 1. d4 {[%emt 0:00:03]} e6 {[%emt 0:00:27]} 2. Nf3 {[%emt 0:00:27]} Nf6 {[%emt 0:00:34]} 3. c4 {[%emt 0:00:22]} b6 {[%emt 0:00:33]} 4. g3 {[%emt 0:00:27]} Bb7 {[%emt 0:01:12]} 5. Bg2 {[%emt 0:00:07]} Be7 {[%emt 0:00:22]} 6. O-O {[%emt 0:00:09]} O-O {[%emt 0:00:43]} 7. Nc3 {[%emt 0:00:23]} Ne4 {[%emt 0:01:17]} 8. Bd2 {[%emt 0:00:25]} Bf6 {[%emt 0:01:24]} 9. Re1 {[%emt 0:00:17] E18: Queen's Indian: Old Main Line (4 g3 Bb7 5 Bg2 Be7 6 0-0 0-0 7 Nc3).} d5 {[%emt 0:06:56]} 10. cxd5 {[%emt 0:01:08]} exd5 {[%emt 0:01:08]} 11. Bf4 {[%emt 0:00:54] [#] White has an edge.} Nxc3 $146 {[%emt 0:05:14]} ({Predecessor:} 11... Re8 12. Qb3 Nxc3 13. bxc3 Nd7 14. a4 c5 15. a5 Bc6 16. axb6 axb6 17. Rxa8 Qxa8 {½-½ (38) Esipenko,A (2625)-Abdusattorov,N (2594) Abu Dhabi 2019}) 12. bxc3 {[%emt 0:00:08]} c5 {[%emt 0:00:05]} ({Better is} 12... Nc6 $14) 13. Ne5 {[%emt 0:04:13]} (13. e4 $1 $16) 13... Nd7 {[%emt 0:09:44]} 14. Qa4 {[%emt 0:08:15]} (14. Nc4 $5 {[%cal Rc4d6]}) 14... Bxe5 {[%emt 0:11:47]} 15. dxe5 {[%emt 0:00:10]} Qe8 {[%emt 0:00:53]} 16. e4 {[%emt 0:02:25]} Nxe5 {[%emt 0:04:13]} 17. Qxe8 {[%emt 0:00:07]} Rfxe8 {[%emt 0:00:03]} 18. exd5 {[%emt 0:00:08]} Nd7 {[%emt 0:03:42]} (18... Nd3 $11 19. Rxe8+ Rxe8) 19. Bh3 {[%emt 0:02:50]} Nf6 {[%emt 0:04:39]} 20. c4 {[%emt 0:01:23]} Bc8 {[%emt 0:10:19]} 21. Rxe8+ {[%emt 0:04:12]} Nxe8 {[%emt 0:00:02]} 22. Bg2 {[%emt 0:00:38] Strongly threatening d6. White is more active.} Ba6 {[%emt 0:05:52]} 23. Re1 {[%emt 0:05:46]} (23. Bf1 $16) 23... Rd8 {[%emt 0:04:26] [#]} (23... Bxc4 $11 {remains equal.} 24. d6 Rd8) 24. d6 {[%emt 0:04:41]} (24. Bf1 $1 $16) 24... Bxc4 $11 {[%emt 0:04:30]} 25. Bc6 {[%emt 0:01:25]} Be6 {[%emt 0:01:37] [#]} 26. Rxe6 {[%emt 0:07:09]} fxe6 {[%emt 0:05:43][%cal Bf7e6,Be6e5][%mdl 32]} 27. Bxe8 {[%emt 0:00:05]} e5 $1 {[%emt 0:00:09]} (27... Rxe8 28. Bg5 $16) 28. Be3 {[%emt 0:02:16]} Rxd6 {[%emt 0:00:14]} ({Don't take} 28... Rxe8 29. Bg5 $16) 29. Kf1 {[%emt 0:00:36]} a6 {[%emt 0:01:32]} 30. Ke2 {[%emt 0:02:00]} c4 {[%emt 0:00:53]} 31. Bd2 {[%emt 0:01:02]} Rd3 {[%emt 0:02:12]} 32. Bc6 {[%emt 0:00:12]} b5 {[%emt 0:06:35]} 33. Bb4 {[%emt 0:01:35] Inhibits Ra3.} Kf7 {[%emt 0:04:43]} 34. Be4 {[%emt 0:07:06][%csl LRd3,LRh7]} a5 {[%emt 0:01:22] Hoping for ...Rd4.} 35. Bc5 {[%emt 0:00:09] Inhibits Rd4. This bishop pair is nice.} (35. Bxh7 $2 g6 36. Bxa5 Ra3 $19) 35... Rc3 {[%emt 0:00:50]} ({Black should try} 35... Rd7 $11) 36. Kd2 $14 {[%emt 0:00:22][%mdl 1024] White has compensation.} ({Not} 36. Bxh7 $2 g6 37. Bd6 Rc2+ 38. Ke3 Kg7 39. Bxg6 Kxg6 $19) 36... b4 {[%emt 0:00:05]} 37. Bb6 {[%emt 0:00:08]} ({Wrong is} 37. Bxh7 $2 g6 38. f3 Ra3 $19) 37... Ra3 {[%emt 0:02:03]} 38. Bd5+ {[%emt 0:00:09]} Kf6 {[%emt 0:00:27]} (38... Ke8 $14 {feels stronger.} 39. Bxc4 Kd7) 39. Bxc4 $16 {[%emt 0:00:35]} a4 {[%emt 0:00:05] [#]} 40. Bd8+ {[%emt 0:08:48]} (40. Ba5 $1 $16 {[%cal Ra5b4]}) 40... Kf5 $14 {[%emt 0:00:05]} 41. Be7 {[%emt 0:00:31]} (41. Ba5 $5 {[%cal Ra5b4]} Rf3 42. Bb6 $14) 41... Rf3 $1 {[%emt 0:00:35] The position is equal.} 42. Bxb4 {[%emt 0:11:56] Ke1 is the strong threat.} Rxf2+ {[%emt 0:00:06]} 43. Ke3 {[%emt 0:00:04]} Rxh2 {[%emt 0:00:04]} 44. a3 {[%emt 0:00:02]} Rb2 {[%emt 0:01:25]} 45. Bc3 {[%emt 0:01:06]} Rb8 {[%emt 0:00:51]} 46. Bd3+ {[%emt 0:00:42]} Kf6 {[%emt 0:01:00]} 47. Ke4 {[%emt 0:01:10]} Rb3 {[%emt 0:00:44][%csl LRa3,LRc3]} 48. Bxe5+ {[%emt 0:00:07]} Ke7 $1 {[%emt 0:00:04]} 49. Bd4 {[%emt 0:00:11]} h5 {[%emt 0:00:27]} 50. Bc5+ {[%emt 0:03:03]} Kf6 {[%emt 0:00:21]} 51. Bd6 {[%emt 0:00:22]} Ke6 {[%emt 0:00:45]} 52. Bc5 {[%emt 0:05:18] aiming for Bc4+.} Kf6 {[%emt 0:00:04] Weighted Error Value: White=0.17 (very precise) /Black=0.18 (very precise)} 1/2-1/2

[Event "Fall GM-B Norm Invitational 2022"]
[Site "Charlotte"]
[Date "2022.11.18"]
[Round "2"]
[White "Korley, Kassa"]
[Black "Woodward, Andy"]
[Result "1/2-1/2"]
[ECO "A05"]
[WhiteElo "2451"]
[BlackElo "2447"]
[Annotator "TA"]
[PlyCount "27"]
[EventDate "2022.11.18"]
[EventType "tourn"]
[EventCountry "USA"]
[SourceTitle "playchess.com"]
[Source "ChessBase"]
[SourceQuality "1"]
[TimeControl "5400+30"]

{[%evp 18,26,13,13,11,12,23,25,22,-10,6]} 1. Nf3 {[%emt 0:00:03]} Nf6 {[%emt 0:00:08]} 2. b3 {[%emt 0:00:11]} g6 {[%emt 0:01:35]} 3. Bb2 {[%emt 0:00:03]} Bg7 {[%emt 0:00:09]} 4. g3 {[%emt 0:00:14]} b6 {[%emt 0:02:53]} 5. Bg2 {[%emt 0:00:48]} Bb7 {[%emt 0:00:06]} 6. O-O {[%emt 0:00:31]} O-O {[%emt 0:00:16]} 7. c4 {[%emt 0:00:49]} c5 {[%emt 0:00:38]} 8. d4 {[%emt 0:06:09]} cxd4 {[%emt 0:01:41]} 9. Qxd4 {[%emt 0:01:14]} d5 {[%emt 0:09:40]} 10. cxd5 {[%emt 0:01:49]} Qxd5 {[%emt 0:00:29] A30: Symmetrical English: Double Fianchetto and Hedgehog.} 11. Qxd5 {[%emt 0:19:36]} Nxd5 {[%emt 0:00:54]} 12. Bxg7 {[%emt 0:00:05]} Kxg7 {[%emt 0:00:11]} 13. Rc1 {[%emt 0:01:34]} Nd7 {[%emt 0:02:56] [#] A rather calm draw.} {Predecessor:} 14. Na3 $146 1/2-1/2

[Event "Fall GM-B Norm Invitational 2022"]
[Site "Charlotte"]
[Date "2022.11.18"]
[Round "2"]
[White "Hilby, Craig"]
[Black "Williams, Justus"]
[Result "0-1"]
[ECO "A15"]
[WhiteElo "2411"]
[BlackElo "2395"]
[Annotator "TA"]
[PlyCount "144"]
[EventDate "2022.11.18"]
[EventType "tourn"]
[EventCountry "USA"]
[SourceTitle "playchess.com"]
[Source "ChessBase"]
[SourceQuality "1"]
[TimeControl "5400+30"]

{[%evp 13,144,-12,0,0,19,0,10,3,7,11,15,0,0,0,0,0,0,0,0,0,0,0,8,0,23,24,25,18,27,31,86,86,86,86,85,46,50,38,78,81,76,57,51,41,56,52,35,54,50,27,61,47,146,89,120,0,0,0,0,0,0,0,0,0,0,0,0,0,0,-43,0,0,0,0,0,0,0,0,0,0,0,0,0,0,0,0,0,0,0,0,0,0,0,0,0,0,0,0,0,-21,-29,-74,-81,-81,-81,-81,-81,-112,-72,-121,-98,-113,-116,-175,-175,-186,-184,-192,-196,-6418,-1433,-12848,-12848,-12849,-12849,-27999,-27997,-27998,-27997,-27998,-27998,-27999,-27999]} 1. Nf3 {[%emt 0:00:04]} Nf6 {[%emt 0:00:14]} 2. c4 {[%emt 0:00:08]} g6 {[%emt 0:00:54]} 3. b4 {[%emt 0:00:40]} Bg7 {[%emt 0:01:45]} 4. Bb2 {[%emt 0:00:07]} O-O {[%emt 0:01:36]} 5. e3 {[%emt 0:00:12]} d6 {[%emt 0:00:42]} 6. Be2 {[%emt 0:00:50]} e5 {[%emt 0:02:24]} 7. d3 {[%emt 0:00:18]} a5 {[%emt 0:06:55]} 8. b5 {[%emt 0:01:06] A15: English Opening: 1...Nf6.} Re8 {[%emt 0:07:32]} 9. O-O {[%emt 0:01:17]} e4 {[%emt 0:03:09]} 10. dxe4 {[%emt 0:02:14] The position is equal.} Nxe4 {[%emt 0:00:35]} 11. Bxg7 {[%emt 0:00:20]} Kxg7 {[%emt 0:00:03] [#]} 12. Qc2 $146 {[%emt 0:09:25]} ({Predecessor:} 12. Qd4+ Qf6 13. Bd3 Nc5 14. Qxf6+ Kxf6 15. Nc3 Be6 16. Be2 Nbd7 17. Nd5+ Bxd5 18. cxd5 Re4 19. Rac1 Ra4 20. Rc2 Nb6 21. Rd1 Re8 22. h3 Re7 23. g4 Kg7 {½-½ (23) Ortiz Elias,J (2460)-Soentges,K (2469) Argentina 2001}) 12... Qf6 {[%emt 0:04:15]} 13. Nbd2 {[%emt 0:02:11]} Nc5 {[%emt 0:01:26]} 14. Nd4 {[%emt 0:02:59]} a4 {[%emt 0:04:11]} 15. Nb1 {[%emt 0:10:48]} Nbd7 {[%emt 0:03:26]} 16. Nc3 {[%emt 0:01:15]} Nb6 {[%emt 0:01:12]} 17. Rae1 {[%emt 0:19:53][%cal Ba1e1,Be1d1,Bd1d4,Bd4d5][%mdl 32]} Be6 {[%emt 0:07:19]} 18. Nxe6+ {[%emt 0:02:44]} Qxe6 {[%emt 0:00:03]} 19. Rd1 {[%emt 0:05:30]} f5 {[%emt 0:01:11]} (19... Nxc4 $2 20. Nd5 Ne5 21. Nxc7 $18) 20. Rd4 {[%emt 0:02:40]} Qe5 {[%emt 0:02:51]} 21. Bf3 {[%emt 0:05:32]} Ra7 {[%emt 0:06:54]} (21... Qf6 $14) 22. Nd5 $1 $16 {[%emt 0:02:02]} Nxd5 {[%emt 0:01:23]} 23. Rxd5 {[%emt 0:00:09]} Qf6 {[%emt 0:00:30]} 24. Rfd1 {[%emt 0:04:54][%cal Ob5b6] Threatens to win with b6!} Nd7 {[%emt 0:03:38]} 25. g3 {[%emt 0:03:01][%cal Oc4c5]} Re5 {[%emt 0:03:04]} 26. Rxe5 {[%emt 0:07:16]} Qxe5 {[%emt 0:01:38]} 27. Rd5 {[%emt 0:00:54]} Qf6 {[%emt 0:01:17]} 28. Rd4 {[%emt 0:00:31]} a3 $1 {[%emt 0:02:46]} 29. b6 {[%emt 0:01:58]} Nxb6 {[%emt 0:06:29]} 30. c5 {[%emt 0:00:09]} Nd7 {[%emt 0:00:15]} 31. cxd6 {[%emt 0:01:25]} c5 {[%emt 0:00:52]} 32. Rd2 {[%emt 0:03:27]} Ne5 {[%emt 0:03:16]} (32... Ra6 $1 $14) 33. Bg2 {[%emt 0:04:35]} (33. Be2 $142) 33... b6 {[%emt 0:00:10] [#]} 34. Qb3 {[%emt 0:03:16]} (34. f4 $1 $16 {[%cal Rf4e5]} Nf7 35. d7) 34... Rd7 $11 {[%emt 0:01:32]} 35. f4 {[%emt 0:01:32]} (35. Qxb6 Nc4 36. Qxc5 Qa1+ 37. Rd1 Qxd1+ $19) 35... Nf7 {[%emt 0:01:40]} 36. Qxa3 {[%emt 0:00:46]} Rxd6 {[%emt 0:01:18]} 37. Rxd6 {[%emt 0:00:45]} Qxd6 {[%emt 0:00:12][%mdl 4096] Endgame KQB-KQN} 38. Qb3 {[%emt 0:00:30]} Qd2 {[%emt 0:01:03]} 39. h3 {[%emt 0:01:16]} h5 {[%emt 0:00:53]} 40. a3 {[%emt 0:01:09]} Qc1+ {[%emt 0:01:30]} 41. Bf1 {[%emt 0:00:33]} Nd6 {[%emt 0:00:27]} (41... b5 $5 42. Qxb5 Qxe3+ 43. Kg2 Qxa3 $15) 42. Qe6 {[%emt 0:00:07]} Nf7 {[%emt 0:00:53]} 43. a4 {[%emt 0:00:20]} ({Not} 43. Qe7 $2 c4 44. Qd7 Qxe3+ 45. Kg2 h4 46. gxh4 Qxf4 $19) 43... Qe1 {[%emt 0:00:48]} 44. Kg2 {[%emt 0:00:13]} Qd2+ {[%emt 0:00:14]} 45. Kf3 {[%emt 0:01:06]} Qd1+ {[%emt 0:04:44]} 46. Kf2 {[%emt 0:00:04]} Qd6 {[%emt 0:00:17]} 47. Qb3 {[%emt 0:00:18]} Qd2+ {[%emt 0:00:34]} 48. Kg1 {[%emt 0:00:51]} Qd8 {[%emt 0:01:46]} 49. Qe6 {[%emt 0:00:42]} Qf6 {[%emt 0:01:28]} 50. Qd7 {[%emt 0:00:13]} Qd6 {[%emt 0:00:24]} 51. Qe8 {[%emt 0:00:20]} Kf6 {[%emt 0:01:06]} 52. Qb5 {[%emt 0:00:39]} Qe6 {[%emt 0:00:25]} 53. Kh2 {[%emt 0:00:59]} Kg7 {[%emt 0:01:47]} ({Don't play} 53... Qxe3 54. Qxb6+ Kg7 55. Qb2+ Kf8 56. h4 $16) 54. Qb2+ {[%emt 0:00:43]} Kh7 {[%emt 0:00:13]} 55. Bg2 {[%emt 0:00:27]} h4 {[%emt 0:01:37]} 56. gxh4 {[%emt 0:00:29]} Qxe3 {[%emt 0:00:48]} 57. Qxb6 {[%emt 0:00:31]} Qxf4+ {[%emt 0:00:28] White is now going downhill.} 58. Kh1 {[%emt 0:00:05]} Qxa4 {[%emt 0:00:55] ...Qd1+ is the strong threat.} 59. Qxc5 {[%emt 0:00:31][%cal Oh4h5]} Qxh4 {[%emt 0:00:28]} 60. Qf8 {[%emt 0:00:40]} Qf6 {[%emt 0:00:59]} (60... Qe1+ {is more complex.} 61. Kh2 Qe5+ 62. Kg1 Ng5) 61. Qe8 {[%emt 0:00:38]} (61. Bd5 $2 Qa1+ 62. Kg2 Qb2+ 63. Kh1 Qc1+ 64. Kh2 Qf4+ 65. Kh1 Qf1+ 66. Kh2 Qf4+ 67. Kh1 Qc1+ 68. Kh2 Qf4+ $19) ({Better is} 61. Bf3) 61... Ne5 {[%emt 0:00:55]} 62. Bd5 {[%emt 0:00:31]} Kh6 {[%emt 0:00:59]} 63. Qe6 {[%emt 0:00:32]} (63. Qc8 $17 {was called for.}) 63... Qxe6 $19 {[%emt 0:01:58]} 64. Bxe6 {[%emt 0:00:02] KB-KN} Kg5 {[%emt 0:00:08]} 65. Kg2 {[%emt 0:00:04] [#]} Kf4 $1 {[%emt 0:00:04]} 66. Kf2 $2 {[%emt 0:00:37]} (66. Bd5) 66... Nd3+ {[%emt 0:00:35]} 67. Ke2 {[%emt 0:00:01]} Ke5 {[%emt 0:00:20]} 68. Bf7 {[%emt 0:00:46]} Kf6 {[%emt 0:00:15]} 69. Kxd3 {[%emt 0:01:09]} Kxf7 {[%emt 0:00:02] Black mates.} 70. h4 {[%emt 0:00:55]} Ke6 {[%emt 0:00:45]} 71. Kd4 {[%emt 0:00:14]} Kd6 {[%emt 0:00:03]} 72. Ke3 {[%emt 0:00:09]} Ke5 {[%emt 0:07:32] Weighted Error Value: White=0.08 (flawless) /Black=0.07 (flawless)} 0-1

[Event "Fall GM-B Norm Invitational 2022"]
[Site "Charlotte"]
[Date "2022.11.19"]
[Round "3"]
[White "Woodward, Andy"]
[Black "Beradze, Irakli"]
[Result "0-1"]
[ECO "D30"]
[WhiteElo "2447"]
[BlackElo "2494"]
[Annotator "TA"]
[PlyCount "82"]
[EventDate "2022.11.18"]
[EventType "tourn"]
[EventCountry "USA"]
[SourceTitle "playchess.com"]
[Source "ChessBase"]
[SourceQuality "1"]
[TimeControl "5400+30"]

{[%evp 19,82,-3,-5,-14,0,-16,5,-38,-10,-86,-91,-81,-65,-63,-62,-97,-98,-172,-173,-197,-131,-127,-126,-168,-143,-152,-142,-188,-184,-225,-206,-239,-235,-301,-295,-293,-274,-270,-239,-326,-314,-334,-348,-375,-362,-412,-366,-610,-325,-312,-310,-512,-384,-360,-356,-506,-439,-588,-529,-735,-521,-2337,-2303,-29977,-29975]} 1. d4 {[%emt 0:00:28]} d5 {[%emt 0:02:02]} 2. c4 {[%emt 0:00:04]} e6 {[%emt 0:00:07]} 3. Nf3 {[%emt 0:00:05]} c6 {[%emt 0:00:12]} 4. Qc2 {[%emt 0:00:10]} Nf6 {[%emt 0:00:38]} 5. Nbd2 {[%emt 0:00:07]} Be7 {[%emt 0:00:28]} 6. g3 {[%emt 0:00:30]} O-O {[%emt 0:00:36]} 7. Bg2 {[%emt 0:00:04]} b6 {[%emt 0:00:03]} 8. O-O {[%emt 0:00:09]} Bb7 {[%emt 0:00:03]} 9. e4 {[%emt 0:02:01]} Na6 {[%emt 0:00:31]} 10. e5 {[%emt 0:14:18]} Nd7 {[%emt 0:00:37][%cal Bf6d7,Bd7c5,Bc5d3][%mdl 32]} 11. b3 {[%emt 0:00:11] E06: Closed Catalan: Early deviations.} c5 {[%emt 0:05:42]} 12. Bb2 {[%emt 0:00:33]} Rc8 {[%emt 0:09:05][%cal Ba8c8,Bc8c7,Bc7d7][%mdl 32] [#]} 13. Rac1 $146 {[%emt 0:09:00] The position is equal.} ({Predecessor:} 13. Qc3 cxd4 14. Qxd4 Nb4 15. Rfc1 Bc5 16. Qc3 dxc4 17. bxc4 Qc7 18. Re1 Na6 19. a3 {0-1 (31) Gurevich,M (2549)-Fressinet,L (2660) Nancy 2017}) 13... dxc4 {[%emt 0:09:33]} 14. bxc4 {[%emt 0:02:58]} (14. Nxc4 $11 {remains equal.} Nb4 15. Qb1) 14... cxd4 {[%emt 0:02:26]} 15. Bxd4 {[%emt 0:01:58]} Ndc5 {[%emt 0:01:53]} 16. Rfd1 {[%emt 0:04:01]} Rc7 {[%emt 0:04:38]} 17. Nf1 {[%emt 0:05:58] Black must now prevent Bxc5.} Rd7 {[%emt 0:04:57]} 18. Be3 {[%emt 0:07:22] [#]} (18. Bxc5 $17 Nxc5 19. Ne1) 18... Nd3 $1 $19 {[%emt 0:12:33] And now ...Nab4 would win.} 19. Ra1 {[%emt 0:05:26]} Bxf3 {[%emt 0:03:01]} (19... Nac5 $19 20. a4 Qc7 21. Bxc5 Nxc5 22. Rxd7 Nxd7) 20. Bxf3 $17 {[%emt 0:00:58]} Nxe5 {[%emt 0:00:02]} 21. Bg2 {[%emt 0:02:04]} Nc5 {[%emt 0:05:34][%cal Ba6c5,Bc5a4,Ba4c3][%mdl 32]} 22. a4 {[%emt 0:02:41]} a5 {[%emt 0:01:12]} 23. Rdb1 {[%emt 0:02:03]} (23. Qe2 $17) 23... Ned3 $19 {[%emt 0:00:53]} 24. Rd1 {[%emt 0:03:36]} Bf6 {[%emt 0:01:01][%cal Be7f6,Bf6c3,Bc3d4][%mdl 32]} 25. Rab1 {[%emt 0:00:17]} Nb4 {[%emt 0:00:12] Pair of Knights!} 26. Qe2 {[%emt 0:00:13]} Nxa4 {[%emt 0:00:30] ...Nc3 is the strong threat.} 27. Bd2 {[%emt 0:01:18]} Nc3 {[%emt 0:00:37]} 28. Bxc3 {[%emt 0:00:09]} Bxc3 {[%emt 0:00:04]} 29. Rdc1 {[%emt 0:01:03]} Bd4 {[%emt 0:00:08][%cal Ob4d3] aiming for ...Nd3!} 30. Ne3 {[%emt 0:00:40]} Qc7 {[%emt 0:00:25]} 31. Qf3 {[%emt 0:00:39]} Rfd8 {[%emt 0:00:39][%cal Bf8d8,Bd8d4,Bd4d2,Bd2f2,Bf2g2][%mdl 32]} 32. h4 Qc5 {[%emt 0:00:22]} 33. Nc2 $2 {[%emt 0:00:54]} (33. Bf1) 33... h5 {[%emt 0:04:15][%cal Ob4d3]} (33... Qxc4 $2 34. Nxb4 $18) 34. Nxd4 {[%emt 0:01:17]} Rxd4 {[%emt 0:00:07]} (34... Qxd4 $2 35. Qxh5 Nd3 36. Rc2 $19) 35. Rd1 $2 {[%emt 0:00:14]} (35. Qe3) 35... g6 {[%emt 0:01:26]} 36. Rxd4 {[%emt 0:00:26]} Rxd4 {[%emt 0:00:30]} (36... Qxd4 $2 {too greedy.} 37. Bf1 $19) 37. Qf6 {[%emt 0:00:31]} (37. Bf1 {might work better.}) 37... Rd2 {[%emt 0:00:44]} 38. Rf1 {[%emt 0:00:23]} Qxc4 {[%emt 0:01:05] Strongly threatening ...a4.} 39. Kh2 {[%emt 0:00:39]} Qd4 {[%emt 0:00:10]} 40. Qe7 {[%emt 0:00:15]} Rxf2 {[%emt 0:00:45]} 41. Rc1 {[%emt 0:00:17] [#]} Rxg2+ $1 {[%emt 0:00:29] Weighted Error Value: White=0.93/Black=0.39} 0-1